[Event "Titled Tuesday Blitz June 07 Late 2022"]
[White "Uskov, Artem"]
[Black "Large, Peter G"]
[WhiteFideId "34254854"]
[BlackFideId "400866"]
[WhiteElo "2335"]
[BlackElo "2064"]
[Result "1-0"]
[Round "09"]
[TimeControl "180+1"]
[Date "2022.06.07"]
[WhiteClock "0:00:06"]
[BlackClock "0:00:02"]

1. e4 {[%clk 0:02:55]}  e6 {[%clk 0:02:57]} 2. d4 {[%clk 0:02:54]}  d5 {[%clk 0:02:58]} 3. Nc3 {[%clk 0:02:46]}  Bb4 {[%clk 0:02:56]} 4. a3 {[%clk 0:02:45]}  Bxc3+ {[%clk 0:02:55]} 5. bxc3 {[%clk 0:02:46]}  Ne7 {[%clk 0:02:56]} 6. Qg4 {[%clk 0:02:42]}  O-O {[%clk 0:02:54]} 7. e5 {[%clk 0:02:40]}  f5 {[%clk 0:02:48]} 8. exf6 {[%clk 0:02:35]}  Rxf6 {[%clk 0:02:48]} 9. Bg5 {[%clk 0:02:34]}  Rf7 {[%clk 0:02:42]} 10. Bd3 {[%clk 0:02:33]}  Qf8 {[%clk 0:02:32]} 11. Qh4 {[%clk 0:02:23]}  h6 {[%clk 0:02:23]} 12. Bxe7 {[%clk 0:02:19]}  Qxe7 {[%clk 0:02:21]} 13. Qg3 {[%clk 0:02:18]}  c5 {[%clk 0:02:02]} 14. Nf3 {[%clk 0:02:07]}  c4 {[%clk 0:02:02]} 15. Bg6 {[%clk 0:02:03]}  Rf6 {[%clk 0:02:02]} 16. O-O {[%clk 0:01:59]}  Nd7 {[%clk 0:02:02]} 17. h4 {[%clk 0:01:56]}  Nf8 {[%clk 0:02:00]} 18. h5 {[%clk 0:01:56]}  Bd7 {[%clk 0:01:58]} 19. Rfe1 {[%clk 0:01:43]}  Nxg6 {[%clk 0:01:43]} 20. hxg6 {[%clk 0:01:43]}  Raf8 {[%clk 0:01:44]} 21. Re5 {[%clk 0:01:38]}  Be8 {[%clk 0:01:40]} 22. Nh4 {[%clk 0:01:33]}  Rxf2 {[%clk 0:01:17]} 23. Rae1 {[%clk 0:01:31]}  R2f4 {[%clk 0:00:43]} 24. Nf3 {[%clk 0:01:07]}  R4f6 {[%clk 0:00:36]} 25. Nh4 {[%clk 0:00:56]}  Rf4 {[%clk 0:00:36]} 26. Rh5 {[%clk 0:00:34]}  Qf6 {[%clk 0:00:28]} 27. Kh2 {[%clk 0:00:34]}  Rxh4+ {[%clk 0:00:20]} 28. Rxh4 {[%clk 0:00:26]}  Bxg6 {[%clk 0:00:20]} 29. Re3 {[%clk 0:00:24]}  Bxc2 {[%clk 0:00:16]} 30. Rf3 {[%clk 0:00:24]}  Bf5 {[%clk 0:00:16]} 31. Qf2 {[%clk 0:00:20]}  Qg5 {[%clk 0:00:14]} 32. g4 {[%clk 0:00:20]}  Kh7 {[%clk 0:00:09]} 33. gxf5 {[%clk 0:00:19]}  Rxf5 {[%clk 0:00:09]} 34. Rxf5 {[%clk 0:00:18]}  exf5 {[%clk 0:00:10]} 35. Rf4 {[%clk 0:00:18]}  g6 {[%clk 0:00:10]} 36. Qg3 {[%clk 0:00:18]}  Qe7 {[%clk 0:00:09]} 37. Rf2 {[%clk 0:00:18]}  Qe4 {[%clk 0:00:09]} 38. Qf3 {[%clk 0:00:13]}  Qh4+ {[%clk 0:00:08]} 39. Kg2 {[%clk 0:00:13]}  Qg5+ {[%clk 0:00:08]} 40. Qg3 {[%clk 0:00:13]}  Qc1 {[%clk 0:00:08]} 41. Re2 {[%clk 0:00:10]}  h5 {[%clk 0:00:07]} 42. Qc7+ {[%clk 0:00:08]}  Kh6 {[%clk 0:00:07]} 43. Qe5 {[%clk 0:00:08]}  Qxc3 {[%clk 0:00:05]} 44. Qh8+ {[%clk 0:00:08]}  Kg5 {[%clk 0:00:05]} 45. Qd8+ {[%clk 0:00:08]}  Kg4 {[%clk 0:00:05]} 46. Rf2 {[%clk 0:00:06]}  Qg3+ {[%clk 0:00:04]} 47. Kf1 {[%clk 0:00:05]}  Qd3+ {[%clk 0:00:05]} 48. Kg1 {[%clk 0:00:06]}  Qd1+ {[%clk 0:00:04]} 49. Kh2 {[%clk 0:00:05]}  Qxd4 {[%clk 0:00:03]} 50. Rg2+ {[%clk 0:00:06]}  Kf3 {[%clk 0:00:04]} 51. Qg5 {[%clk 0:00:06]}  f4 {[%clk 0:00:02]} 52. Qxg6 {[%clk 0:00:04]}  Qe4 {[%clk 0:00:03]} 53. Qxh5+ {[%clk 0:00:04]}  Ke3 {[%clk 0:00:03]} 54. Re2+ {[%clk 0:00:05]}  Kd3 {[%clk 0:00:04]} 55. Rxe4 {[%clk 0:00:05]}  dxe4 {[%clk 0:00:04]} 56. Qd1+ {[%clk 0:00:06]}  Ke3 {[%clk 0:00:05]} 57. Kg2 {[%clk 0:00:06]}  f3+ {[%clk 0:00:05]} 58. Kg3 {[%clk 0:00:07]}  c3 {[%clk 0:00:05]} 59. Qe1+ {[%clk 0:00:07]}  Kd3 {[%clk 0:00:05]} 60. Kf2 {[%clk 0:00:06]}  c2 {[%clk 0:00:05]} 61. Qe3+ {[%clk 0:00:07]}  Kc4 {[%clk 0:00:05]} 62. Qxe4+ {[%clk 0:00:07]}  Kc3 {[%clk 0:00:06]} 63. Qxf3+ {[%clk 0:00:06]}  Kb2 {[%clk 0:00:06]} 64. Qxb7+ {[%clk 0:00:04]}  Kxa3 {[%clk 0:00:05]} 65. Qc6 {[%clk 0:00:03]}  Kb2 {[%clk 0:00:05]} 66. Qb5+ {[%clk 0:00:04]}  Kc3 {[%clk 0:00:05]} 67. Qc5+ {[%clk 0:00:04]}  Kb2 {[%clk 0:00:05]} 68. Qb4+ {[%clk 0:00:04]}  Ka2 {[%clk 0:00:06]} 69. Qc3 {[%clk 0:00:04]}  Kb1 {[%clk 0:00:05]} 70. Qb3+ {[%clk 0:00:05]}  Kc1 {[%clk 0:00:03]} 71. Ke2 {[%clk 0:00:05]}  a5 {[%clk 0:00:03]} 72. Kd3 {[%clk 0:00:05]}  a4 {[%clk 0:00:02]} 73. Qxc2# {[%clk 0:00:06]} 1-0


[Site "https://www.chess.com"]

[Event "Titled Tuesday Blitz June 07 Late 2022"]
[White "Yuan, Qingyu"]
[Black "Larino Nieto, David"]
[WhiteFideId "8609772"]
[BlackFideId "2256444"]
[WhiteElo "2359"]
[BlackElo "2532"]
[Result "1-0"]
[Round "09"]
[TimeControl "180+1"]
[Date "2022.06.07"]
[WhiteClock "0:00:18"]
[BlackClock "0:00:20"]

1. e4 {[%clk 0:03:00]}  d5 {[%clk 0:02:59]} 2. exd5 {[%clk 0:03:00]}  Qxd5 {[%clk 0:02:59]} 3. Nc3 {[%clk 0:03:01]}  Qa5 {[%clk 0:02:59]} 4. d4 {[%clk 0:03:01]}  Nf6 {[%clk 0:02:59]} 5. Nf3 {[%clk 0:03:01]}  Nc6 {[%clk 0:02:59]} 6. Bd2 {[%clk 0:02:24]}  a6 {[%clk 0:02:57]} 7. a4 {[%clk 0:02:19]}  Qh5 {[%clk 0:02:53]} 8. Ne2 {[%clk 0:02:09]}  Qf5 {[%clk 0:02:40]} 9. Ng3 {[%clk 0:02:06]}  Qd7 {[%clk 0:02:39]} 10. Bc4 {[%clk 0:02:01]}  e6 {[%clk 0:02:39]} 11. c3 {[%clk 0:01:58]}  Bd6 {[%clk 0:02:32]} 12. O-O {[%clk 0:01:52]}  b6 {[%clk 0:02:28]} 13. Qe2 {[%clk 0:01:47]}  O-O {[%clk 0:02:25]} 14. Rad1 {[%clk 0:01:38]}  Bb7 {[%clk 0:02:23]} 15. Ne5 {[%clk 0:01:37]}  Bxe5 {[%clk 0:02:16]} 16. dxe5 {[%clk 0:01:36]}  Nd5 {[%clk 0:02:17]} 17. Bg5 {[%clk 0:01:31]}  h6 {[%clk 0:02:15]} 18. Bxh6 {[%clk 0:01:22]}  gxh6 {[%clk 0:02:16]} 19. Nh5 {[%clk 0:01:20]}  Qe7 {[%clk 0:01:47]} 20. Bxd5 {[%clk 0:01:16]}  exd5 {[%clk 0:01:48]} 21. Nf6+ {[%clk 0:01:14]}  Kh8 {[%clk 0:01:48]} 22. Qc2 {[%clk 0:01:07]}  Qxf6 {[%clk 0:01:42]} 23. exf6 {[%clk 0:01:08]}  Rg8 {[%clk 0:01:41]} 24. Rfe1 {[%clk 0:00:59]}  Rg6 {[%clk 0:01:41]} 25. Qf5 {[%clk 0:00:53]}  Rag8 {[%clk 0:01:40]} 26. g3 {[%clk 0:00:52]}  d4 {[%clk 0:01:30]} 27. cxd4 {[%clk 0:00:48]}  Nb4 {[%clk 0:01:26]} 28. Re7 {[%clk 0:00:43]}  Bd5 {[%clk 0:01:16]} 29. Rxc7 {[%clk 0:00:38]}  Rg5 {[%clk 0:01:13]} 30. Qf4 {[%clk 0:00:37]}  Be6 {[%clk 0:01:06]} 31. Rb7 {[%clk 0:00:26]}  Nd5 {[%clk 0:01:06]} 32. Qd6 {[%clk 0:00:25]}  Rf5 {[%clk 0:01:01]} 33. Rb8 {[%clk 0:00:25]}  Nxf6 {[%clk 0:00:48]} 34. Rxg8+ {[%clk 0:00:21]}  Kxg8 {[%clk 0:00:49]} 35. Qxb6 {[%clk 0:00:21]}  h5 {[%clk 0:00:47]} 36. Re1 {[%clk 0:00:19]}  Bc4 {[%clk 0:00:20]} 37. Re5 {[%clk 0:00:19]}  Rf3 {[%clk 0:00:20]} 38. Kg2 {[%clk 0:00:18]} 1-0


[Site "https://www.chess.com"]

[Event "Titled Tuesday Blitz June 07 Late 2022"]
[White "Zhigalko, Sergei"]
[Black "Maltsevskaya, Aleksandra"]
[WhiteFideId "13502956"]
[BlackFideId "24174041"]
[WhiteElo "2662"]
[BlackElo "2243"]
[Result "1-0"]
[Round "09"]
[TimeControl "180+1"]
[Date "2022.06.07"]
[WhiteClock "0:00:31"]
[BlackClock "0:00:01"]

1. e4 {[%clk 0:03:00]}  c5 {[%clk 0:02:57]} 2. Nf3 {[%clk 0:03:00]}  e6 {[%clk 0:02:58]} 3. c3 {[%clk 0:03:00]}  d5 {[%clk 0:02:57]} 4. e5 {[%clk 0:03:00]}  d4 {[%clk 0:02:58]} 5. Bd3 {[%clk 0:03:00]}  Nc6 {[%clk 0:02:57]} 6. O-O {[%clk 0:03:00]}  Nge7 {[%clk 0:02:58]} 7. Re1 {[%clk 0:03:00]}  Ng6 {[%clk 0:02:58]} 8. g3 {[%clk 0:03:01]}  Bd7 {[%clk 0:02:55]} 9. h4 {[%clk 0:03:00]}  Qc7 {[%clk 0:02:55]} 10. Qe2 {[%clk 0:03:00]}  O-O-O {[%clk 0:02:54]} 11. Na3 {[%clk 0:02:56]}  a6 {[%clk 0:02:49]} 12. h5 {[%clk 0:02:56]}  Nge7 {[%clk 0:02:46]} 13. Nc4 {[%clk 0:02:56]}  Nd5 {[%clk 0:02:43]} 14. a4 {[%clk 0:02:56]}  g6 {[%clk 0:02:41]} 15. Be4 {[%clk 0:02:44]}  f5 {[%clk 0:02:17]} 16. exf6 {[%clk 0:02:29]}  Nxf6 {[%clk 0:02:17]} 17. d3 {[%clk 0:02:24]}  Nxh5 {[%clk 0:01:59]} 18. Ng5 {[%clk 0:02:20]}  Be7 {[%clk 0:01:24]} 19. Nf7 {[%clk 0:02:16]}  Rhf8 {[%clk 0:01:14]} 20. Nxd8 {[%clk 0:02:14]}  Bxd8 {[%clk 0:01:00]} 21. Bg2 {[%clk 0:02:08]}  e5 {[%clk 0:00:24]} 22. Bh6 {[%clk 0:01:43]}  Re8 {[%clk 0:00:18]} 23. Qf3 {[%clk 0:01:33]}  Nf6 {[%clk 0:00:12]} 24. Qd1 {[%clk 0:01:03]}  Bg4 {[%clk 0:00:12]} 25. Qb3 {[%clk 0:01:03]}  Be6 {[%clk 0:00:08]} 26. a5 {[%clk 0:00:55]}  e4 {[%clk 0:00:08]} 27. Bf4 {[%clk 0:00:50]}  Bxc4 {[%clk 0:00:05]} 28. Qxc4 {[%clk 0:00:47]}  Qd7 {[%clk 0:00:05]} 29. dxe4 {[%clk 0:00:41]}  Bc7 {[%clk 0:00:06]} 30. Bxc7 {[%clk 0:00:40]}  Qxc7 {[%clk 0:00:06]} 31. Qxc5 {[%clk 0:00:41]}  Nd7 {[%clk 0:00:04]} 32. Qd5 {[%clk 0:00:39]}  Nf6 {[%clk 0:00:02]} 33. Qc4 {[%clk 0:00:37]}  Kb8 {[%clk 0:00:02]} 34. cxd4 {[%clk 0:00:36]}  Ng4 {[%clk 0:00:02]} 35. Re2 {[%clk 0:00:33]}  Qe7 {[%clk 0:00:02]} 36. e5 {[%clk 0:00:32]}  Nd8 {[%clk 0:00:01]} 37. Rae1 {[%clk 0:00:31]} 1-0


[Site "https://www.chess.com"]

[Event "Titled Tuesday Blitz June 07 Late 2022"]
[White "Andreikin, Dmitry"]
[Black "Livaic, Leon"]
[WhiteFideId "4158814"]
[BlackFideId "14531534"]
[WhiteElo "2736"]
[BlackElo "2540"]
[Result "0-1"]
[Round "10"]
[TimeControl "180+1"]
[Date "2022.06.07"]
[WhiteClock "0:01:20"]
[BlackClock "0:02:01"]

1. d4 {[%clk 0:03:00]}  e6 {[%clk 0:02:59]} 2. e4 {[%clk 0:02:58]}  d5 {[%clk 0:02:59]} 3. Nc3 {[%clk 0:02:58]}  Bb4 {[%clk 0:02:58]} 4. exd5 {[%clk 0:02:58]}  exd5 {[%clk 0:02:59]} 5. Bd3 {[%clk 0:02:59]}  Nc6 {[%clk 0:02:59]} 6. a3 {[%clk 0:02:56]}  Bxc3+ {[%clk 0:03:00]} 7. bxc3 {[%clk 0:02:56]}  Nge7 {[%clk 0:03:00]} 8. Qh5 {[%clk 0:02:56]}  Be6 {[%clk 0:02:59]} 9. Ne2 {[%clk 0:02:55]}  Qd7 {[%clk 0:02:59]} 10. Ng3 {[%clk 0:02:52]}  O-O-O {[%clk 0:02:43]} 11. O-O {[%clk 0:02:51]}  g6 {[%clk 0:02:33]} 12. Qh6 {[%clk 0:02:49]}  Nf5 {[%clk 0:02:31]} 13. Nxf5 {[%clk 0:02:38]}  Bxf5 {[%clk 0:02:32]} 14. Bg5 {[%clk 0:02:37]}  Rde8 {[%clk 0:02:31]} 15. Bf6 {[%clk 0:02:23]}  Rhf8 {[%clk 0:02:31]} 16. Rae1 {[%clk 0:02:19]}  Bxd3 {[%clk 0:02:30]} 17. cxd3 {[%clk 0:02:19]}  Qf5 {[%clk 0:02:30]} 18. Bg7 {[%clk 0:02:08]}  Rg8 {[%clk 0:02:27]} 19. Qxh7 {[%clk 0:02:01]}  Qxd3 {[%clk 0:02:25]} 20. Bh6 {[%clk 0:01:56]}  Qxc3 {[%clk 0:02:14]} 21. Qxf7 {[%clk 0:01:48]}  Qxe1 {[%clk 0:02:13]} 22. Qxd5 {[%clk 0:01:28]}  Qe6 {[%clk 0:02:10]} 23. Qc5 {[%clk 0:01:22]}  Qd6 {[%clk 0:02:01]} 24. Qc4 {[%clk 0:01:20]}  g5 {[%clk 0:02:01]} 0-1


[Site "https://www.chess.com"]

[Event "Titled Tuesday Blitz June 07 Late 2022"]
[White "Bas Mas, Jose Joaquin"]
[Black "Gascon Del Nogal, Jose Rafael"]
[WhiteFideId "22219064"]
[BlackFideId "3902463"]
[WhiteElo "2233"]
[BlackElo "2473"]
[Result "1-0"]
[Round "10"]
[TimeControl "180+1"]
[Date "2022.06.07"]
[WhiteClock "0:00:08"]
[BlackClock "0:00:09"]

1. e4 {[%clk 0:03:00]}  c5 {[%clk 0:02:59]} 2. Nc3 {[%clk 0:03:00]}  Nc6 {[%clk 0:02:59]} 3. Bb5 {[%clk 0:03:00]}  Nd4 {[%clk 0:02:59]} 4. Nf3 {[%clk 0:03:00]}  Nxb5 {[%clk 0:02:58]} 5. Nxb5 {[%clk 0:03:00]}  d6 {[%clk 0:02:59]} 6. O-O {[%clk 0:03:00]}  Nf6 {[%clk 0:02:59]} 7. Nc3 {[%clk 0:02:59]}  e5 {[%clk 0:02:58]} 8. d3 {[%clk 0:02:56]}  h6 {[%clk 0:02:57]} 9. h3 {[%clk 0:02:56]}  g6 {[%clk 0:02:56]} 10. a4 {[%clk 0:02:56]}  Bg7 {[%clk 0:02:55]} 11. a5 {[%clk 0:02:34]}  O-O {[%clk 0:02:52]} 12. Be3 {[%clk 0:02:35]}  Nh5 {[%clk 0:02:32]} 13. Nd2 {[%clk 0:02:18]}  Be6 {[%clk 0:02:11]} 14. Nc4 {[%clk 0:02:18]}  Nf4 {[%clk 0:01:57]} 15. Qf3 {[%clk 0:02:17]}  g5 {[%clk 0:01:49]} 16. Rad1 {[%clk 0:02:13]}  Qd7 {[%clk 0:01:44]} 17. Kh2 {[%clk 0:02:12]}  Rab8 {[%clk 0:01:33]} 18. Nd5 {[%clk 0:01:50]}  Bxd5 {[%clk 0:01:14]} 19. exd5 {[%clk 0:01:51]}  b5 {[%clk 0:01:12]} 20. axb6 {[%clk 0:01:45]}  axb6 {[%clk 0:01:11]} 21. Ra1 {[%clk 0:01:46]}  b5 {[%clk 0:00:58]} 22. Na5 {[%clk 0:01:46]}  f5 {[%clk 0:00:49]} 23. Nc6 {[%clk 0:01:37]}  Rb7 {[%clk 0:00:49]} 24. Bxf4 {[%clk 0:01:14]}  gxf4 {[%clk 0:00:34]} 25. Ra6 {[%clk 0:01:13]}  Qf7 {[%clk 0:00:19]} 26. Rfa1 {[%clk 0:01:02]}  Re8 {[%clk 0:00:19]} 27. Ra7 {[%clk 0:00:58]}  e4 {[%clk 0:00:17]} 28. Qe2 {[%clk 0:00:45]}  f3 {[%clk 0:00:13]} 29. Qf1 {[%clk 0:00:44]}  Rxa7 {[%clk 0:00:11]} 30. Rxa7 {[%clk 0:00:43]}  Qh5 {[%clk 0:00:09]} 31. gxf3 {[%clk 0:00:32]}  exf3 {[%clk 0:00:09]} 32. Qg1 {[%clk 0:00:32]}  Qg5 {[%clk 0:00:08]} 33. Qxg5 {[%clk 0:00:27]}  hxg5 {[%clk 0:00:09]} 34. Kg3 {[%clk 0:00:27]}  Bxb2 {[%clk 0:00:09]} 35. Kxf3 {[%clk 0:00:21]}  Bf6 {[%clk 0:00:08]} 36. Rd7 {[%clk 0:00:21]}  b4 {[%clk 0:00:06]} 37. Rxd6 {[%clk 0:00:20]}  Kf7 {[%clk 0:00:06]} 38. Rd7+ {[%clk 0:00:20]}  Kg6 {[%clk 0:00:07]} 39. d6 {[%clk 0:00:19]}  Rh8 {[%clk 0:00:07]} 40. Rb7 {[%clk 0:00:17]}  Rxh3+ {[%clk 0:00:06]} 41. Ke2 {[%clk 0:00:18]}  Rh8 {[%clk 0:00:05]} 42. d7 {[%clk 0:00:18]}  f4 {[%clk 0:00:04]} 43. Rb8 {[%clk 0:00:16]}  Rxb8 {[%clk 0:00:03]} 44. Nxb8 {[%clk 0:00:17]}  Kf7 {[%clk 0:00:03]} 45. Nc6 {[%clk 0:00:17]}  g4 {[%clk 0:00:03]} 46. d8=Q {[%clk 0:00:17]}  Bxd8 {[%clk 0:00:04]} 47. Nxd8+ {[%clk 0:00:18]}  Ke7 {[%clk 0:00:04]} 48. Nb7 {[%clk 0:00:18]}  g3 {[%clk 0:00:01]} 49. fxg3 {[%clk 0:00:16]}  fxg3 {[%clk 0:00:02]} 50. Kf3 {[%clk 0:00:17]}  c4 {[%clk 0:00:02]} 51. dxc4 {[%clk 0:00:17]}  Kd7 {[%clk 0:00:02]} 52. Na5 {[%clk 0:00:16]}  Kd6 {[%clk 0:00:02]} 53. Nb3 {[%clk 0:00:16]}  Ke5 {[%clk 0:00:03]} 54. Kxg3 {[%clk 0:00:15]}  Kd6 {[%clk 0:00:03]} 55. Kf3 {[%clk 0:00:15]}  Kc6 {[%clk 0:00:04]} 56. Ke3 {[%clk 0:00:16]}  Kb6 {[%clk 0:00:05]} 57. Kd4 {[%clk 0:00:16]}  Kc6 {[%clk 0:00:06]} 58. c5 {[%clk 0:00:14]}  Kb5 {[%clk 0:00:06]} 59. Kd5 {[%clk 0:00:14]}  Ka4 {[%clk 0:00:07]} 60. c6 {[%clk 0:00:14]}  Ka3 {[%clk 0:00:07]} 61. c7 {[%clk 0:00:15]}  Kb2 {[%clk 0:00:08]} 62. c8=Q {[%clk 0:00:15]}  Ka2 {[%clk 0:00:08]} 63. Nd4 {[%clk 0:00:14]}  Kb2 {[%clk 0:00:09]} 64. Qa6 {[%clk 0:00:11]}  Kc3 {[%clk 0:00:08]} 65. Qa4 {[%clk 0:00:09]}  Kb2 {[%clk 0:00:09]} 66. Qxb4+ {[%clk 0:00:09]}  Kc1 {[%clk 0:00:09]} 67. c4 {[%clk 0:00:09]}  Kd1 {[%clk 0:00:09]} 68. Qb2 {[%clk 0:00:08]}  Ke1 {[%clk 0:00:09]} 69. Qe2# {[%clk 0:00:08]} 1-0


[Site "https://www.chess.com"]

[Event "Titled Tuesday Blitz June 07 Late 2022"]
[White "De Souza, Regis Gabetta"]
[Black "Jegorovas, Aleksandras"]
[WhiteFideId "22756930"]
[BlackFideId "12801950"]
[WhiteElo "1926"]
[BlackElo "2247"]
[Result "0-1"]
[Round "10"]
[TimeControl "180+1"]
[Date "2022.06.07"]
[WhiteClock "0:00:03"]
[BlackClock "0:00:43"]

1. d4 {[%clk 0:03:00]}  Nf6 {[%clk 0:02:50]} 2. Nf3 {[%clk 0:02:58]}  e6 {[%clk 0:02:50]} 3. b3 {[%clk 0:02:58]}  c5 {[%clk 0:02:48]} 4. e3 {[%clk 0:02:57]}  b6 {[%clk 0:02:47]} 5. Bb2 {[%clk 0:02:57]}  Bb7 {[%clk 0:02:48]} 6. Nbd2 {[%clk 0:02:57]}  Be7 {[%clk 0:02:48]} 7. c4 {[%clk 0:02:58]}  O-O {[%clk 0:02:47]} 8. Be2 {[%clk 0:02:58]}  cxd4 {[%clk 0:02:47]} 9. exd4 {[%clk 0:02:58]}  d6 {[%clk 0:02:44]} 10. O-O {[%clk 0:02:58]}  Nbd7 {[%clk 0:02:44]} 11. h3 {[%clk 0:02:57]}  Re8 {[%clk 0:02:41]} 12. Bd3 {[%clk 0:02:57]}  Bf8 {[%clk 0:02:42]} 13. Qe2 {[%clk 0:02:57]}  g6 {[%clk 0:02:41]} 14. Rad1 {[%clk 0:02:45]}  Bg7 {[%clk 0:02:40]} 15. Qe3 {[%clk 0:02:36]}  Qc7 {[%clk 0:02:38]} 16. Qf4 {[%clk 0:02:31]}  e5 {[%clk 0:02:36]} 17. dxe5 {[%clk 0:02:29]}  dxe5 {[%clk 0:02:35]} 18. Qh4 {[%clk 0:02:28]}  e4 {[%clk 0:02:30]} 19. Nxe4 {[%clk 0:01:51]}  Bxe4 {[%clk 0:02:26]} 20. Bxe4 {[%clk 0:01:49]}  Rxe4 {[%clk 0:02:25]} 21. Qg5 {[%clk 0:01:45]}  Re2 {[%clk 0:02:16]} 22. Bc3 {[%clk 0:01:39]}  h6 {[%clk 0:02:14]} 23. Qc1 {[%clk 0:01:32]}  Rxa2 {[%clk 0:02:14]} 24. Rfe1 {[%clk 0:01:29]}  Nc5 {[%clk 0:02:03]} 25. Be5 {[%clk 0:01:21]}  Qb7 {[%clk 0:01:57]} 26. b4 {[%clk 0:01:16]}  Ne6 {[%clk 0:01:53]} 27. Qc3 {[%clk 0:01:10]}  Ne4 {[%clk 0:01:48]} 28. Qe3 {[%clk 0:01:01]}  Nxf2 {[%clk 0:01:45]} 29. Ra1 {[%clk 0:00:50]}  Rxa1 {[%clk 0:01:40]} 30. Bxa1 {[%clk 0:00:48]}  Bxa1 {[%clk 0:01:39]} 31. Rxa1 {[%clk 0:00:48]}  Nxh3+ {[%clk 0:01:33]} 32. gxh3 {[%clk 0:00:47]}  Rc8 {[%clk 0:01:31]} 33. Rc1 {[%clk 0:00:42]}  Qe7 {[%clk 0:01:25]} 34. b5 {[%clk 0:00:39]}  Qf6 {[%clk 0:01:22]} 35. Kh2 {[%clk 0:00:29]}  Rc5 {[%clk 0:01:17]} 36. Qe4 {[%clk 0:00:25]}  Ng5 {[%clk 0:01:14]} 37. Nxg5 {[%clk 0:00:22]}  Qf2+ {[%clk 0:01:09]} 38. Qg2 {[%clk 0:00:18]}  Qf4+ {[%clk 0:01:06]} 39. Qg3 {[%clk 0:00:16]}  Qxc1 {[%clk 0:01:03]} 40. Nf3 {[%clk 0:00:10]}  Qc2+ {[%clk 0:01:00]} 41. Kh1 {[%clk 0:00:10]}  Qxc4 {[%clk 0:00:58]} 42. Qb8+ {[%clk 0:00:09]}  Rc8 {[%clk 0:00:57]} 43. Qe5 {[%clk 0:00:08]}  Qf1+ {[%clk 0:00:54]} 44. Ng1 {[%clk 0:00:09]}  Qf5 {[%clk 0:00:53]} 45. Qe3 {[%clk 0:00:08]}  Qd5+ {[%clk 0:00:52]} 46. Nf3 {[%clk 0:00:06]}  Rd8 {[%clk 0:00:49]} 47. Kg2 {[%clk 0:00:05]}  Qxb5 {[%clk 0:00:48]} 48. Qxh6 {[%clk 0:00:04]}  Qc6 {[%clk 0:00:46]} 49. Kg3 {[%clk 0:00:03]}  Rd3 {[%clk 0:00:43]} 0-1


[Site "https://www.chess.com"]

[Event "Titled Tuesday Blitz June 07 Late 2022"]
[White "Korchmar, Vasiliy"]
[Black "Holt, Conrad"]
[WhiteFideId "24131750"]
[BlackFideId "2034387"]
[WhiteElo "2370"]
[BlackElo "2586"]
[Result "0-1"]
[Round "10"]
[TimeControl "180+1"]
[Date "2022.06.07"]
[WhiteClock "0:00:03"]
[BlackClock "0:00:19"]

1. e4 {[%clk 0:03:00]}  e6 {[%clk 0:02:57]} 2. d4 {[%clk 0:03:00]}  d5 {[%clk 0:02:58]} 3. e5 {[%clk 0:03:01]}  c5 {[%clk 0:02:58]} 4. c3 {[%clk 0:03:01]}  Nc6 {[%clk 0:02:59]} 5. Nf3 {[%clk 0:03:02]}  Bd7 {[%clk 0:02:59]} 6. Be2 {[%clk 0:03:02]}  Qb6 {[%clk 0:02:44]} 7. O-O {[%clk 0:03:01]}  a5 {[%clk 0:02:43]} 8. Na3 {[%clk 0:02:43]}  cxd4 {[%clk 0:02:42]} 9. cxd4 {[%clk 0:02:44]}  Bxa3 {[%clk 0:02:42]} 10. bxa3 {[%clk 0:02:45]}  Nge7 {[%clk 0:02:43]} 11. Be3 {[%clk 0:02:33]}  Nf5 {[%clk 0:02:42]} 12. Rb1 {[%clk 0:02:33]}  Qa7 {[%clk 0:02:42]} 13. Bd3 {[%clk 0:02:23]}  O-O {[%clk 0:02:36]} 14. Bxf5 {[%clk 0:02:20]}  exf5 {[%clk 0:02:37]} 15. Qb3 {[%clk 0:02:10]}  f4 {[%clk 0:02:37]} 16. Bxf4 {[%clk 0:02:05]}  Nxd4 {[%clk 0:02:36]} 17. Nxd4 {[%clk 0:01:48]}  Qxd4 {[%clk 0:02:35]} 18. Qg3 {[%clk 0:01:47]}  b5 {[%clk 0:02:05]} 19. Rbd1 {[%clk 0:01:23]}  Qc4 {[%clk 0:01:54]} 20. Rc1 {[%clk 0:00:29]}  Qe4 {[%clk 0:01:48]} 21. Rfd1 {[%clk 0:00:17]}  Be6 {[%clk 0:01:39]} 22. Bh6 {[%clk 0:00:16]}  Qg6 {[%clk 0:01:36]} 23. Qxg6 {[%clk 0:00:15]}  hxg6 {[%clk 0:01:31]} 24. Bd2 {[%clk 0:00:16]}  d4 {[%clk 0:01:29]} 25. Bg5 {[%clk 0:00:13]}  f6 {[%clk 0:01:25]} 26. exf6 {[%clk 0:00:14]}  gxf6 {[%clk 0:01:25]} 27. Bh4 {[%clk 0:00:12]}  g5 {[%clk 0:01:17]} 28. Bg3 {[%clk 0:00:11]}  Rfd8 {[%clk 0:01:17]} 29. Rc6 {[%clk 0:00:10]}  Bxa2 {[%clk 0:01:12]} 30. Rxf6 {[%clk 0:00:09]}  d3 {[%clk 0:00:58]} 31. Rg6+ {[%clk 0:00:09]}  Kf7 {[%clk 0:00:58]} 32. Rxg5 {[%clk 0:00:10]}  Bb3 {[%clk 0:00:49]} 33. Rd2 {[%clk 0:00:10]}  b4 {[%clk 0:00:49]} 34. axb4 {[%clk 0:00:09]}  a4 {[%clk 0:00:50]} 35. Be5 {[%clk 0:00:06]}  Rac8 {[%clk 0:00:46]} 36. h4 {[%clk 0:00:06]}  Rc2 {[%clk 0:00:45]} 37. Rxc2 {[%clk 0:00:03]}  dxc2 {[%clk 0:00:45]} 38. Bb2 {[%clk 0:00:03]}  Rd1+ {[%clk 0:00:41]} 39. Kh2 {[%clk 0:00:04]}  Rb1 {[%clk 0:00:41]} 40. Ba3 {[%clk 0:00:04]}  Ra1 {[%clk 0:00:42]} 41. Bb2 {[%clk 0:00:05]}  a3 {[%clk 0:00:41]} 42. Bxa1 {[%clk 0:00:02]}  c1=Q {[%clk 0:00:41]} 43. Be5 {[%clk 0:00:02]}  Qd2 {[%clk 0:00:35]} 44. f4 {[%clk 0:00:01]}  Qxb4 {[%clk 0:00:31]} 45. h5 {[%clk 0:00:02]}  Bc2 {[%clk 0:00:31]} 46. h6 {[%clk 0:00:02]}  Ke6 {[%clk 0:00:22]} 47. Rg7 {[%clk 0:00:03]}  Qe1 {[%clk 0:00:19]} 0-1


[Site "https://www.chess.com"]